bitfinex-derivatives/quotes_ETHF0:USTF0_20241024
["timestamp","ask_amount","ask_price","bid_price","bid_amount"]
[1729732820497,5.16669917,2554.8,2554.7,0.35266]
[1729732820901,0.7793,2554.8,2554.7,0.35266]
[1729732821298,3.2078,2554.9,2554.8,0.35264]
[1729732821604,0.7878,2555.4,2555.1,0.35259]
[1729732821605,3.2078,2555.3,2555.1,0.35259]
[1729732821804,3.2078,2555.3,2555.2,0.35259]
[1729732822005,7.47103451,2555.3,2555.1,0.3526]
[1729732822195,11.38463451,2555.3,2555.1,0.35259]
[1729732822702,7.47103451,2555.3,2555.2,0.35259]
[1729732823206,11.38463451,2555.3,2555.2,0.35259]
[1729732823699,4.26323451,2555.3,2555.2,0.35259]
[1729732824001,0.7568,2555.4,2555.2,3.9136]
[1729732824207,3.2078,2556.0,2555.8,0.35249]
[1729732824400,0.7568,2555.9,2555.8,0.35249]
[1729732824598,4.99463205,2555.9,2555.8,0.35249]
[1729732824799,8.90743205,2555.9,2555.7,0.35251]
[1729732825104,4.99463205,2555.9,2555.4,3.2078]
[1729732825303,4.99463205,2555.9,2555.7,0.35251]
[1729732827308,5.34712205,2555.9,2555.6,0.35252]
[1729732827804,4.99463205,2555.9,2555.4,3.2078]
[1729732827999,3.2078,2555.7,2554.9,3.76467778]
[1729732828200,0.35258,2555.3,2555.0,0.35262]
[1729732828401,0.81390734,2555.6,2554.9,0.35262]
[1729732828402,1.1029,2555.2,2554.9,0.35262]
[1729732828608,5.30925653,2555.2,2554.9,0.35262]
[1729732828803,4.95665653,2555.2,2555.0,0.35261]
[1729732829009,4.95665653,2555.2,2555.1,0.3526]
[1729732832810,4.20635653,2555.2,2555.1,11.23867778]
[1729732833016,0.35254,2555.6,2555.3,0.35257]
[1729732833311,4.14905828,2555.5,2555.3,0.35257]
[1729732833512,4.50160828,2555.5,2555.3,0.35257]
[1729732833815,0.8184,2555.4,2555.3,0.35257]
[1729732834105,5.03615423,2555.4,2555.1,3.2078]
[1729732834306,0.8184,2555.4,2555.1,3.2078]
[1729732834513,0.8184,2555.4,2555.2,0.35259]
[1729732834514,4.97955423,2555.3,2555.2,0.35259]
[1729732835303,0.35251,2555.8,2555.2,3.9136]
[1729732835508,1.5674,2555.8,2555.1,6.97247778]
[1729732835808,5.90050616,2555.8,2555.7,0.35252]
[1729732837006,4.0021,2556.2,2555.7,7.67747778]
[1729732837208,4.0021,2556.2,2556.0,0.35247]
[1729732837403,4.13139785,2556.1,2556.0,0.35247]
[1729732840612,3.2078,2556.2,2556.1,0.35246]
[1729732841309,1.5517,2556.4,2556.3,0.35244]
[1729732841515,0.7461,2556.4,2556.3,0.35244]
[1729732842222,5.02796585,2556.4,2556.1,0.35246]
[1729732842508,0.35244,2556.3,2556.1,0.35246]
[1729732843724,4.20137763,2556.2,2555.9,0.35248]
[1729732843909,5.33173763,2556.2,2556.0,0.35247]
[1729732844222,0.86368779,2556.1,2556.0,0.35247]
[1729732844420,5.01878587,2556.1,2556.0,0.35248]
[1729732844624,5.01878587,2556.1,2555.7,6.97247778]
[1729732844813,5.30606808,2556.1,2555.9,0.35249]
[1729732845119,0.06518852,2556.0,2555.4,6.97247778]
[1729732845312,0.06518852,2556.0,2555.9,0.35249]
[1729732845912,0.06518908,2556.0,2555.6,0.35253]
[1729732846115,0.06518908,2556.0,2555.9,0.35249]
[1729732846518,4.95359808,2556.1,2555.7,6.97247778]
[1729732846710,4.31697193,2556.0,2555.9,0.35249]
[1729732846911,4.38216032,2556.0,2555.9,0.35249]
[1729732847316,4.38216032,2556.0,2555.4,7.14597778]
[1729732847317,8.29496032,2556.0,2555.4,3.2078]
[1729732847616,0.35253,2555.7,2555.5,0.35254]
[1729732847811,0.35253,2555.7,2555.5,0.35255]
[1729732847812,0.8223,2555.6,2555.5,0.35255]
[1729732848015,6.12259828,2555.6,2555.5,0.35255]
[1729732848313,6.47512828,2555.6,2555.5,0.35255]
[1729732848522,6.12259828,2555.6,2555.5,0.35255]
[1729732848723,0.35255,2555.5,2555.4,3.2078]
[1729732848917,6.12259828,2555.6,2555.4,3.2078]
[1729732849119,6.47512828,2555.6,2555.5,0.35255]
[1729732849422,6.18780064,2555.6,2555.5,0.35255]
[1729732849621,6.18780028,2555.6,2555.5,0.35255]
[1729732850328,6.18780028,2555.6,2555.4,3.2078]
[1729732850619,6.47513828,2555.6,2555.4,3.56035]
[1729732851925,6.12259828,2555.6,2555.5,0.35255]
[1729732852619,0.35255,2555.5,2555.4,3.2078]
[1729732853024,0.35255,2555.5,2555.4,3.56036]
[1729732853423,6.96529828,2555.6,2555.4,3.56036]
[1729732853719,3.2078,2555.9,2555.5,3.76349866]
[1729732854025,5.06261314,2555.8,2555.7,0.35252]
[1729732854322,1.76145,2557.4,2555.7,3.76349866]
[1729732854323,3.2078,2556.2,2555.7,3.76349866]
[1729732854626,5.06261314,2556.0,2555.9,0.35248]
[1729732855021,0.8217,2556.0,2555.9,0.35248]
[1729732855322,0.8217,2556.0,2555.7,3.76349866]
[1729732855624,0.8217,2556.0,2555.4,3.56035]
[1729732855625,0.35253,2555.7,2555.4,3.56035]
[1729732855921,5.1536433,2555.6,2555.4,3.2078]
[1729732856125,5.1536433,2555.6,2555.5,0.35255]
[1729732856427,0.35258,2555.3,2555.0,3.56041]
[1729732856621,1.6154,2555.2,2555.0,3.2078]
[1729732856924,0.8611,2555.1,2554.9,0.35262]
[1729732857229,0.8611,2555.1,2555.0,0.35262]
[1729732857423,0.8611,2555.1,2554.4,3.76349866]
[1729732857726,5.35509428,2555.1,2554.5,0.88172]
[1729732858327,5.35509428,2555.1,2555.0,0.35262]
[1729732859419,0.8611,2555.1,2555.0,0.35262]
[1729732860032,5.10648024,2555.1,2555.0,0.35262]
[1729732860730,5.10648024,2555.1,2554.9,0.35262]
[1729732860929,5.45909024,2555.1,2554.8,0.35264]
[1729732861231,0.7843,2555.0,2554.8,0.35264]
[1729732861435,1.13693,2555.0,2554.7,0.35265]
[1729732861730,4.27678676,2554.9,2554.7,0.35265]
[1729732861930,4.27678676,2554.9,2554.4,0.35269]
[1729732861931,0.35266,2554.7,2554.4,0.35269]
[1729732862122,0.8179,2554.6,2554.5,0.35268]
[1729732862433,4.9621429,2554.6,2554.5,0.35268]
[1729732862628,0.8179,2554.6,2554.5,0.35268]
[1729732862825,5.8044429,2554.6,2554.5,0.35268]
[1729732863027,5.8044429,2554.6,2554.4,0.35269]
[1729732863437,5.8044429,2554.6,2554.5,0.35268]
[1729732863828,5.8044429,2554.6,2554.1,6.97129866]
[1729732864135,5.8044429,2554.6,2554.4,0.35269]
[1729732864732,3.9144,2554.5,2554.1,3.2078]
[1729732865031,5.19094862,2554.4,2554.1,3.2078]
[1729732865337,0.8599,2554.4,2554.2,0.35272]
[1729732865630,4.33104862,2554.3,2554.1,0.35273]
[1729732866129,4.33104862,2554.3,2554.2,0.35273]
[1729732866825,4.33104862,2554.3,2553.9,3.76349866]
[1729732867023,4.33104862,2554.3,2553.7,3.76349866]
[1729732867235,0.35279,2553.8,2553.5,0.35282]
[1729732867427,1.6732,2553.7,2553.2,3.2078]
[1729732867627,6.2632252,2553.7,2553.3,0.35284]
[1729732867829,6.7117252,2553.7,2553.1,3.76349866]
[1729732868026,6.7117252,2553.7,2553.6,0.35281]
[1729732868333,6.7117252,2553.7,2553.5,0.35282]
[1729732868533,6.7117252,2553.7,2553.5,0.35281]
[1729732868736,6.7117252,2553.7,2553.2,3.2078]
[1729732868929,7.0645252,2553.7,2553.4,0.35283]
[1729732869328,3.916,2553.6,2552.9,3.2078]
[1729732869635,4.65568911,2553.5,2552.9,3.2078]
[1729732869934,4.65568911,2553.5,2553.2,0.35286]
[1729732870129,4.30285911,2553.5,2552.9,3.2078]
[1729732870326,4.65568911,2553.5,2552.9,3.2078]
[1729732870529,4.65568911,2553.5,2553.2,0.35286]
[1729732870938,4.30285911,2553.5,2552.9,3.2078]
[1729732871139,4.30285911,2553.5,2553.4,0.35284]
[1729732871933,0.8504,2553.7,2553.6,0.35281]
[1729732872327,4.97054525,2553.7,2553.6,0.35281]
[1729732872940,4.97054525,2553.7,2553.5,0.35281]
[1729732874727,4.97054525,2553.7,2553.3,3.0600988]
[1729732874927,4.97054525,2553.7,2553.6,0.35281]
[1729732875138,4.12014525,2553.7,2553.4,0.35283]
[1729732875528,4.46258126,2553.8,2553.4,0.35283]
[1729732875846,3.56057,2553.9,2553.3,3.0600988]
[1729732876042,4.42854659,2553.8,2553.3,3.4129388]
[1729732876236,4.42854659,2553.8,2553.3,3.0600988]
[1729732876940,4.78133659,2553.8,2553.3,3.0600988]
[1729732877241,0.3528,2553.7,2553.3,3.0600988]
[1729732877541,4.49601992,2553.6,2553.2,3.2078]
[1729732877838,0.8477,2553.5,2553.1,3.0600988]
[1729732878040,0.8477,2553.5,2552.9,3.4129988]
[1729732878244,3.2078,2553.3,2552.7,3.0600988]
[1729732878637,0.35289,2553.1,2552.7,3.0600988]
[1729732878846,0.35292,2552.9,2552.5,3.2078]
[1729732879143,5.08446571,2552.8,2552.5,3.2078]
[1729732879339,5.08446571,2552.8,2551.9,0.99300751]
[1729732879340,0.35296,2552.5,2552.2,3.2078]
[1729732879641,5.09556571,2552.4,2552.2,3.5608]
[1729732879943,0.8588,2552.4,2552.2,0.353]
[1729732880142,0.8588,2552.4,2552.3,3.0600988]
[1729732880648,5.31610711,2552.4,2552.2,0.353]
[1729732880843,5.31610711,2552.4,2552.1,0.35301]
[1729732881038,5.66908711,2552.4,2551.9,3.56083]
[1729732881648,5.66908711,2552.4,2552.0,0.35303]
[1729732881946,0.35299,2552.3,2551.9,3.56084]
[1729732882144,6.2678988,2552.3,2551.6,6.2678988]
[1729732882336,4.12150108,2552.2,2551.7,0.35306]
[1729732882536,4.12150108,2552.2,2551.6,3.56088]
[1729732882537,0.35303,2552.0,2551.6,3.56088]
[1729732882848,4.12150108,2551.9,2551.6,3.56088]
[1729732883043,3.53264281,2551.9,2551.6,3.56088]
[1729732883242,7.127,2551.8,2551.2,3.2078]
[1729732883443,3.9973,2551.8,2551.2,3.2078]
[1729732883744,0.35313,2551.3,2551.2,3.2078]
[1729732883937,3.76892609,2551.6,2551.2,3.2078]
[1729732884138,4.45767049,2551.3,2550.7,3.76892609]
[1729732884335,0.35316,2551.1,2550.7,4.12212609]
[1729732884545,0.809,2551.2,2550.7,3.76892609]
[1729732884844,4.45767049,2551.0,2550.7,4.12212609]
[1729732885038,4.45767049,2551.1,2550.8,0.35319]
[1729732885237,0.809,2551.2,2550.9,0.35318]
[1729732885437,4.35658512,2551.1,2550.7,6.97672609]
[1729732885645,2.9822001,2551.1,2551.0,0.35317]
[1729732885842,2.9822001,2551.1,2550.8,0.3532]
[1729732886041,2.9822001,2551.1,2550.7,3.561]
[1729732886246,3.7969001,2551.1,2550.7,3.2078]
[1729732886449,4.1500601,2551.1,2550.6,0.35322]
[1729732886945,4.1500601,2551.1,2550.8,0.35319]
[1729732886946,3.7969001,2551.1,2550.8,0.35319]
[1729732887139,3.7969001,2551.1,2550.4,6.97672609]
[1729732887348,3.7969001,2551.1,2550.4,3.2078]
[1729732887551,3.7969001,2551.1,2550.7,0.3532]
[1729732888945,3.7969001,2551.1,2550.8,0.35319]
[1729732889142,3.7969001,2551.1,2550.5,0.35324]
[1729732889343,2.02969227,2551.1,2550.8,0.35318]
[1729732890041,2.02969227,2551.1,2550.9,0.35318]
[1729732890247,2.02969227,2551.1,2550.8,0.35319]
[1729732890855,2.38285227,2551.1,2550.7,0.3532]
[1729732891239,2.02969227,2551.1,2550.7,0.3532]
[1729732891548,2.02969227,2551.1,2550.6,0.35322]
[1729732891549,3.76892609,2550.8,2550.6,0.35322]
[1729732891749,0.35325,2550.5,2550.1,3.56109]
[1729732891948,1.615,2550.4,2550.1,3.2078]
[1729732892155,5.82470217,2550.4,2550.2,0.35327]
[1729732892350,3.46777913,2550.4,2550.1,0.35328]
[1729732892547,3.46777913,2550.4,2550.3,0.35326]
[1729732893246,3.46777913,2550.4,2550.1,3.2078]
[1729732893446,3.46777913,2550.4,2550.2,0.35327]
[1729732893747,3.46777913,2550.4,2550.3,0.35326]
[1729732894141,3.46777913,2550.4,2550.2,0.35327]
[1729732894355,3.46777913,2550.4,2550.3,0.35326]
[1729732894553,3.46777913,2550.4,2550.1,3.2078]
[1729732894753,3.46777913,2550.4,2549.7,3.2078]
[1729732894955,3.46777913,2550.4,2550.3,0.35326]
[1729732896047,3.46777913,2550.4,2550.3,3.56106]
[1729732897551,3.46777913,2550.4,2550.3,7.48186]
[1729732897752,3.76892609,2550.9,2550.7,0.35319]
[1729732897753,5.43462609,2550.9,2550.7,0.35319]
[1729732898061,4.12607544,2550.8,2550.7,0.35319]
[1729732898251,8.04607544,2550.8,2550.7,0.35319]
[1729732898450,4.12607544,2550.8,2550.7,0.35319]
[1729732900661,1.18079184,2550.8,2550.7,4.27399]
[1729732900857,3.2078,2551.0,2550.9,0.35318]
[1729732901457,3.2078,2551.6,2550.9,7.1278]
[1729732901760,3.2078,2551.6,2551.5,0.3531]
[1729732902264,7.4471389,2551.6,2551.5,0.3531]
[1729732902464,4.2393389,2551.6,2551.5,0.3531]
[1729732903473,8.36135499,2551.6,2551.4,0.35311]
[1729732903659,8.36135499,2551.6,2551.3,0.35312]
[1729732903963,8.00826499,2551.6,2550.9,3.2078]
[1729732904167,0.35313,2551.3,2551.0,0.35316]
[1729732904466,4.43233835,2551.2,2551.0,0.35316]
[1729732904858,0.8267,2551.1,2551.0,0.35316]
[1729732905263,3.76892609,2551.6,2550.9,3.2078]
[1729732905465,1.17978,2551.6,2551.3,0.35311]
[1729732905763,4.48846445,2551.4,2551.3,0.35312]
[1729732905965,0.35311,2551.4,2551.1,0.35314]
[1729732906158,4.59562609,2551.6,2550.9,3.2078]
[1729732906159,4.59562609,2551.6,2551.0,0.35316]
[1729732906355,4.59562609,2551.6,2550.0,8.12e-06]
[1729732906356,0.35329,2550.1,2550.0,8.12e-06]
[1729732906560,0.35329,2550.1,2548.6,1.71811354]
[1729732906561,4.09119,2549.7,2548.6,1.71811354]
[1729732906762,6.97672609,2548.7,2548.6,1.71811354]
[1729732906968,3.2078,2548.7,2548.6,1.71811354]
[1729732907165,11.54722493,2548.7,2548.6,1.71811354]
[1729732907361,15.31615102,2548.7,2548.6,1.71811354]
[1729732907567,7.62322493,2548.7,2548.6,1.71811354]
[1729732907867,7.62322493,2548.7,2547.7,3.2078]
[1729732908063,3.2078,2548.4,2548.2,0.35355]
[1729732908276,3.2078,2548.4,2547.7,3.2078]
[1729732908560,3.2078,2548.4,2547.7,0.35362]
[1729732908761,3.2078,2548.4,2547.6,4.61282609]
[1729732908762,3.2078,2548.4,2548.1,0.35355]
[1729732908960,3.2078,2548.4,2548.2,0.35355]
[1729732909159,3.2078,2548.4,2548.1,0.35356]
[1729732909462,4.25195776,2548.3,2548.1,0.35356]
[1729732909668,4.25195776,2548.3,2547.6,4.61282609]
[1729732909863,4.25195776,2548.3,2548.1,0.35355]
[1729732910465,4.25195776,2548.3,2548.0,0.35357]
[1729732910668,3.2078,2548.1,2547.8,0.3536]
[1729732911365,3.2078,2548.1,2547.4,3.2078]
[1729732911570,3.2078,2547.8,2547.5,0.35364]
[1729732911768,3.2078,2547.8,2547.7,0.35362]
[1729732912275,3.2078,2547.8,2547.7,4.27842]
[1729732912469,3.2078,2548.1,2547.8,0.3536]
[1729732912871,3.2078,2548.1,2547.4,3.2078]
[1729732913070,3.2078,2548.1,2547.9,0.35359]
[1729732913271,4.37284428,2548.0,2547.7,0.35361]
[1729732913471,4.37284428,2548.0,2547.8,0.3536]
[1729732913769,3.2078,2548.1,2547.8,0.35361]
[1729732913966,3.2078,2548.1,2548.0,0.35358]
[1729732914168,3.2078,2548.1,2547.9,0.35358]
[1729732914367,3.2078,2548.1,2548.0,0.35358]
[1729732914974,3.2078,2548.1,2548.0,3.9248]
[1729732915171,3.2078,2548.1,2548.0,4.27838]
[1729732916376,3.2078,2548.1,2547.4,3.2078]
[1729732916576,3.2078,2548.1,2547.9,0.35358]
[1729732916962,8.14675152,2548.0,2547.5,0.35364]
[1729732917169,8.14675152,2548.0,2547.7,0.35361]
[1729732917170,3.2078,2547.8,2547.7,0.35361]
[1729732919376,3.2078,2547.8,2547.7,4.27841]
[1729732919573,3.76892609,2548.0,2547.9,0.35359]
[1729732919970,8.10061733,2548.0,2547.7,0.35361]
[1729732920173,8.10061733,2548.0,2547.8,0.3536]
[1729732920373,8.10061733,2548.0,2547.7,0.35361]
[1729732920675,8.10061733,2548.0,2547.4,3.2078]
[1729732920676,8.10061733,2548.0,2547.5,0.35365]
[1729732920882,8.10061733,2548.0,2547.7,0.35361]
[1729732921064,8.10061733,2548.0,2547.4,3.2078]
[1729732921264,8.10061733,2548.0,2547.7,0.35361]
[1729732921674,8.10061733,2548.0,2547.4,3.2078]
[1729732921974,3.2078,2548.1,2547.4,3.2078]
[1729732922663,3.2078,2548.1,2547.8,0.3536]
[1729732923283,3.2078,2548.1,2547.4,3.2078]
[1729732923469,3.2078,2548.1,2547.9,0.35359]
[1729732923671,3.2078,2548.1,2547.9,0.35358]
[1729732923973,3.2078,2548.1,2547.4,4.09194]
[1729732924180,3.2078,2548.1,2547.9,0.35358]
[1729732926673,3.2078,2548.1,2547.9,0.35359]
[1729732927069,3.76892609,2548.0,2547.4,3.2078]
[1729732927270,6.97672609,2547.8,2547.0,3.2078]
[1729732927673,4.35434212,2547.7,2547.5,0.35364]
[1729732928072,3.37132973,2547.7,2547.5,0.35364]
[1729732928275,0.35364,2547.6,2547.4,0.35366]
[1729732928477,3.37132973,2547.7,2547.4,0.35366]
[1729732928780,4.10942254,2547.5,2547.4,0.35366]
[1729732928977,4.10942254,2547.7,2547.5,0.35364]
[1729732929172,3.2078,2547.8,2547.6,0.35363]
[1729732929480,3.2078,2547.8,2547.7,0.35362]
[1729732929878,3.2078,2547.8,2547.7,4.27842]
[1729732930784,3.2078,2548.2,2547.7,3.9248]
[1729732931081,7.70395097,2548.2,2547.5,0.8183]
[1729732931270,7.70395097,2548.2,2548.0,0.35357]
[1729732931673,7.70395097,2548.2,2547.5,0.8183]
[1729732931873,7.70395097,2548.2,2548.0,0.35357]
[1729732932677,7.70395097,2548.2,2547.6,0.88408]
[1729732932876,7.70395097,2548.2,2548.1,0.35357]
[1729732933585,0.7767,2548.3,2547.8,0.88402]
[1729732933778,3.2078,2548.5,2547.9,3.2078]
[1729732934181,3.2078,2548.5,2548.4,0.35352]
[1729732934379,4.0288,2548.8,2548.7,0.35348]
[1729732934580,4.0288,2548.8,2548.2,3.2078]
[1729732934790,4.0288,2548.8,2547.9,0.88396]
[1729732934791,4.47774386,2548.7,2547.9,0.88396]
[1729732934980,3.2078,2548.5,2547.9,0.88396]
[1729732935181,3.2078,2548.5,2548.4,0.35352]
[1729732935477,3.2078,2548.5,2547.9,0.88396]
[1729732935478,11.73666136,2548.5,2548.3,0.35353]
[1729732935678,7.45915136,2548.5,2548.4,0.35352]
[1729732936277,4.25135136,2548.5,2548.4,4.27752]
[1729732936484,0.821,2548.8,2548.7,0.35348]
[1729732936888,5.32459634,2548.8,2548.7,0.35348]
[1729732937689,9.60126634,2548.8,2548.0,3.2078]
[1729732937886,3.2078,2548.7,2548.6,0.35349]
[1729732938186,7.65118019,2548.7,2548.4,0.35352]
[1729732938384,0.783,2548.6,2548.4,0.35352]
[1729732938580,0.783,2548.6,2548.5,0.35351]
[1729732938980,5.22638019,2548.6,2548.5,0.35351]
[1729732939587,5.22638019,2548.6,2547.8,3.76892609]
[1729732939786,5.22638019,2548.6,2548.5,0.35351]
[1729732939984,3.2078,2548.7,2548.1,3.76892609]
[1729732940186,3.2078,2548.7,2548.6,0.3535]
[1729732941392,11.99990046,2548.7,2548.5,0.3535]
[1729732941690,11.99990046,2548.7,2548.5,0.35351]
[1729732941691,0.799,2548.6,2548.5,0.35351]
[1729732942083,5.31361046,2548.6,2548.5,0.35351]
[1729732943395,5.31361046,2548.6,2547.9,1.70019]
[1729732943687,5.31361046,2548.6,2548.5,0.35351]
[1729732947184,4.51461046,2548.6,2548.5,0.35351]
[1729732949886,4.86810046,2548.6,2548.5,0.35351]
[1729732950181,4.51461046,2548.6,2548.5,0.35351]
[1729732950586,4.51461046,2548.6,2547.9,4.024]
[1729732950789,4.86811046,2548.6,2548.4,0.35352]
[1729732950987,0.35351,2548.5,2548.3,0.35353]
[1729732951188,3.2078,2548.4,2547.9,3.2078]
[1729732951394,3.2078,2548.1,2548.0,0.35358]
[1729732952291,0.8054,2548.4,2548.3,0.35354]
[1729732952694,4.97823248,2548.4,2548.3,0.35354]
[1729732952889,4.17283248,2548.4,2548.3,0.35354]
[1729732953099,3.992,2548.7,2548.1,0.7816]
[1729732953291,3.992,2548.7,2548.6,0.35349]
[1729732953693,8.27257535,2548.7,2548.6,0.35349]
[1729732954085,7.48837535,2548.7,2548.6,0.35349]
[1729732955091,7.48837535,2548.7,2548.1,1.66549]
[1729732955300,0.7842,2548.6,2548.2,0.35355]
[1729732955596,1.1377,2548.6,2548.4,0.35351]
[1729732955797,4.52743988,2548.5,2548.4,0.35351]
[1729732955990,4.52743988,2548.5,2548.3,0.35353]
[1729732955991,4.88094988,2548.5,2548.3,0.35353]
[1729732956594,3.2078,2548.4,2548.3,0.35353]
[1729732956999,3.2078,2548.4,2547.9,4.59112609]
[1729732957197,7.91883133,2548.4,2548.0,0.35358]
[1729732957401,0.35355,2548.2,2547.7,3.2078]
[1729732957590,0.7845,2548.3,2548.0,0.35357]
[1729732957791,4.23401907,2548.1,2548.0,0.35357]
[1729732957991,4.58756907,2548.2,2548.0,0.35357]
[1729732958192,0.35355,2548.2,2548.1,0.35356]
[1729732958595,4.90651491,2548.2,2548.1,0.35356]
[1729732959099,8.47776491,2548.2,2547.5,0.8013]
[1729732959392,3.2078,2548.0,2547.9,0.35358]
[1729732959696,0.3536,2547.9,2547.7,0.35361]
[1729732959900,7.48684694,2548.0,2547.2,0.7982]
[1729732960101,3.76892609,2548.2,2547.2,0.7982]
[1729732960102,3.2078,2547.7,2547.2,0.7982]
[1729732960306,3.56142,2547.7,2547.5,0.35364]
[1729732960493,4.08374211,2547.6,2547.5,0.35364]
[1729732962996,3.2078,2547.7,2547.6,0.35363]
[1729732963502,3.2078,2548.0,2547.9,0.35358]
[1729732963901,7.50341343,2548.0,2547.9,0.35358]
[1729732964893,11.42821343,2548.0,2547.9,0.35358]
[1729732965089,11.42821343,2548.0,2547.6,0.7948]
[1729732965292,7.50341343,2548.0,2547.9,0.35359]
[1729732965695,11.42821343,2548.0,2547.9,0.35359]
[1729732967311,7.50341343,2548.0,2547.9,0.35359]
[1729732968003,3.2078,2548.0,2547.9,0.35359]
[1729732969808,7.6531833,2548.0,2547.8,0.35359]
[1729732970503,7.6531733,2548.0,2547.8,0.3536]
[1729732971498,7.6531733,2548.0,2547.9,0.35359]
[1729732971499,7.2995933,2548.0,2547.9,0.35359]
[1729732972004,0.3536,2547.9,2547.7,0.35361]
[1729732972400,4.33772951,2547.8,2547.7,0.35361]
[1729732972898,4.33772951,2547.9,2547.6,0.7948]
[1729732973205,3.56138,2548.0,2547.8,0.35359]
[1729732973508,4.33772951,2547.9,2547.8,0.35359]
[1729732973798,4.33772951,2547.9,2547.3,3.06704868]
[1729732974005,0.3536,2547.8,2547.7,0.35361]
[1729732974200,4.33772951,2547.9,2547.3,3.88644868]
[1729732974201,0.35362,2547.7,2547.5,0.35364]
[1729732974398,3.2078,2547.7,2547.6,0.35362]
[1729732974912,7.71880007,2547.7,2547.6,0.35362]
[1729732975705,4.51100007,2547.7,2547.6,0.35362]
[1729732976101,7.71880007,2547.7,2547.6,0.35362]
[1729732976297,7.71880007,2547.7,2547.6,0.35363]
[1729732976502,3.2078,2547.7,2547.6,0.35363]
[1729732976704,7.42123362,2547.7,2547.6,0.35363]
[1729732977616,4.21343362,2547.7,2547.6,0.35363]
[1729732978309,3.2078,2548.1,2547.6,4.27843]
[1729732978503,3.2078,2548.1,2548.0,0.35358]
[1729732978909,7.30213163,2548.1,2548.0,0.35358]
[1729732981602,3.2078,2548.1,2548.0,4.27838]
[1729732981808,3.2078,2548.4,2548.3,0.35352]
[1729732982206,7.74499263,2548.4,2548.3,0.35352]
[1729732982411,3.2078,2548.4,2548.3,0.35352]
[1729732982606,3.2078,2548.4,2548.3,1.12722]
[1729732984115,0.7498,2548.7,2548.6,0.35349]
[1729732984319,3.2078,2548.9,2548.8,0.35347]
[1729732987014,1.12009,2549.4,2549.3,0.3534]
[1729732987015,3.9745,2549.4,2549.3,0.3534]
[1729732987314,8.07643805,2549.4,2549.3,0.3534]
[1729732988821,8.07643805,2549.4,2548.9,1.5653]
[1729732989019,8.07643805,2549.4,2549.2,0.3534]
[1729732989223,8.07643805,2549.4,2549.1,0.35342]
[1729732989224,0.3534,2549.3,2549.1,0.35342]
[1729732989420,0.3534,2549.3,2549.0,0.35344]
[1729732989619,0.3534,2549.3,2549.1,0.35342]
[1729732990628,8.07643805,2549.4,2548.9,1.5653]
[1729732990926,8.07643805,2549.4,2548.0,3.06704868]
[1729732990927,0.35345,2549.0,2548.8,0.35346]
[1729732991222,3.2078,2549.1,2548.8,0.35346]
[1729732991223,4.97625266,2548.9,2548.8,0.35346]
[1729732991614,0.7587,2548.9,2548.8,0.35346]
[1729732991811,5.30957856,2548.9,2548.8,0.35346]
[1729732992120,3.9812,2549.1,2549.0,0.35344]
[1729732992316,3.9812,2549.1,2548.9,0.35344]
[1729732992520,4.17586801,2549.0,2548.9,0.35344]
[1729732992720,8.15706801,2549.1,2549.0,0.35344]
[1729732992921,3.9812,2549.1,2549.0,0.35344]
[1729732993123,4.17586801,2549.1,2549.0,0.35344]
[1729732993416,0.7587,2549.4,2549.0,7.34368868]
[1729732993620,3.2078,2549.5,2549.1,1.5082]
[1729732993817,3.2078,2549.5,2549.3,0.35339]
[1729732994014,4.22862276,2549.4,2549.1,1.5082]
[1729732994216,3.56122,2549.2,2549.0,0.35344]
[1729732994416,0.35343,2549.1,2548.9,0.35345]
[1729732994616,6.03212468,2549.1,2548.9,0.35345]
[1729732994816,6.03212468,2549.1,2549.0,0.35344]
[1729732995017,6.03212468,2549.1,2548.8,3.2078]
[1729732995222,6.03212468,2549.1,2548.7,1.5082]
[1729732995223,6.03212468,2549.1,2548.7,0.7372]
[1729732995418,6.03212468,2549.1,2548.6,0.35348]
[1729732995419,3.56126,2548.9,2548.6,0.35348]
[1729732995618,6.03212468,2549.1,2548.9,0.35345]
[1729732995619,3.2078,2549.0,2548.9,0.35345]
[1729732996032,7.91504631,2549.0,2548.8,0.35346]
[1729732996221,7.91504631,2549.0,2548.5,3.06704868]
[1729732996222,7.56160631,2549.0,2548.5,3.06704868]
[1729732996419,7.56160631,2549.0,2548.9,0.35345]
[1729732997116,4.35380631,2549.0,2548.9,0.35345]
[1729732997415,1.4799,2549.1,2549.0,0.35344]
[1729732998521,3.2078,2549.4,2549.3,0.3534]
[1729732998924,7.68664749,2549.4,2548.9,3.06704868]
[1729732999119,8.04003749,2549.4,2549.2,0.35341]
[1729732999524,0.7809,2549.3,2549.1,0.35342]
[1729732999814,0.7809,2549.3,2549.2,0.35341]
[1729733001623,1.1343,2549.3,2549.1,0.35342]
[1729733002126,0.7809,2549.3,2549.2,0.35341]
[1729733002720,3.2078,2549.4,2549.3,0.3534]
[1729733005122,3.2078,2549.4,2548.9,3.80004868]
[1729733005317,0.35341,2549.3,2549.1,0.35341]
[1729733005523,0.35341,2549.3,2549.0,0.35343]
[1729733005524,0.35342,2549.2,2549.0,0.35343]
[1729733005827,0.7514,2549.1,2549.0,0.35343]
[1729733006034,3.9592,2549.1,2549.0,0.35343]
[1729733011434,3.2078,2549.1,2549.0,3.42047868]
[1729733013236,3.56119,2549.4,2549.2,0.3534]
[1729733013635,7.70778026,2549.4,2549.3,0.3534]
[1729733014033,11.63018026,2549.4,2549.0,3.06704868]
[1729733014240,8.06117026,2549.4,2549.0,3.06704868]
[1729733014430,7.70778026,2549.4,2549.0,3.06704868]
[1729733014641,7.70778026,2549.4,2549.3,0.3534]
[1729733015033,11.63018026,2549.4,2549.3,0.3534]
[1729733015442,11.63018026,2549.4,2548.8,0.7648]
[1729733015633,0.35347,2548.8,2548.7,0.35348]
[1729733015840,0.35347,2548.8,2548.2,3.95090868]
[1729733015841,3.56124,2549.0,2548.8,0.35346]
[1729733016042,1.5559,2548.9,2548.8,0.35346]
[1729733016237,9.69506967,2548.9,2548.2,3.95090868]